[Event "Titled Tuesday Blitz May 30 Early 2023"]
[White "Panesar Vedant"]
[Black "Miszler, Levente"]
[WhiteFideId "35033018"]
[BlackFideId "763276"]
[WhiteElo "2347"]
[BlackElo "2176"]
[Result "1-0"]
[Round "01"]
[TimeControl "180+2"]
[Date "2023.05.30"]
[WhiteClock "0:00:48"]
[BlackClock "0:01:06"]

1. e4 {[%clk 0:03:00]}  c5 {[%clk 0:02:58]} 2. Nf3 {[%clk 0:03:01]}  Nc6 {[%clk 0:02:58]} 3. d4 {[%clk 0:03:01]}  cxd4 {[%clk 0:02:59]} 4. Nxd4 {[%clk 0:03:02]}  g6 {[%clk 0:02:58]} 5. c4 {[%clk 0:03:01]}  Bg7 {[%clk 0:02:57]} 6. Be3 {[%clk 0:03:00]}  d6 {[%clk 0:02:50]} 7. Nc3 {[%clk 0:03:00]}  Nf6 {[%clk 0:02:50]} 8. Be2 {[%clk 0:02:59]}  O-O {[%clk 0:02:49]} 9. O-O {[%clk 0:02:59]}  Bd7 {[%clk 0:02:48]} 10. h3 {[%clk 0:02:59]}  Nxd4 {[%clk 0:02:48]} 11. Bxd4 {[%clk 0:02:59]}  Bc6 {[%clk 0:02:48]} 12. Qc2 {[%clk 0:02:58]}  Rc8 {[%clk 0:02:41]} 13. Rad1 {[%clk 0:02:57]}  Qa5 {[%clk 0:02:36]} 14. a3 {[%clk 0:02:47]}  a6 {[%clk 0:02:33]} 15. Rfe1 {[%clk 0:02:39]}  Rfd8 {[%clk 0:02:31]} 16. Bf3 {[%clk 0:02:38]}  b5 {[%clk 0:02:30]} 17. cxb5 {[%clk 0:02:35]}  axb5 {[%clk 0:02:31]} 18. Qd2 {[%clk 0:02:28]}  b4 {[%clk 0:02:31]} 19. axb4 {[%clk 0:02:29]}  Qxb4 {[%clk 0:02:32]} 20. Bxf6 {[%clk 0:02:29]}  Bxf6 {[%clk 0:02:27]} 21. Nd5 {[%clk 0:02:12]}  Qxd2 {[%clk 0:02:27]} 22. Nxf6+ {[%clk 0:02:12]}  Kg7 {[%clk 0:02:21]} 23. Rxd2 {[%clk 0:01:57]}  Kxf6 {[%clk 0:02:19]} 24. e5+ {[%clk 0:01:57]}  Kg7 {[%clk 0:02:13]} 25. Bxc6 {[%clk 0:01:54]}  Rxc6 {[%clk 0:02:12]} 26. Red1 {[%clk 0:01:55]}  Rb6 {[%clk 0:02:09]} 27. exd6 {[%clk 0:01:55]}  exd6 {[%clk 0:02:03]} 28. Kf1 {[%clk 0:01:50]}  d5 {[%clk 0:02:02]} 29. Rb1 {[%clk 0:01:44]}  Rb3 {[%clk 0:02:01]} 30. Ke2 {[%clk 0:01:40]}  Kf6 {[%clk 0:02:01]} 31. Rd3 {[%clk 0:01:38]}  Rdb8 {[%clk 0:02:00]} 32. Rxb3 {[%clk 0:01:30]}  Rxb3 {[%clk 0:02:00]} 33. Kd2 {[%clk 0:01:30]}  Ke5 {[%clk 0:02:00]} 34. Kc2 {[%clk 0:01:31]}  Rb7 {[%clk 0:02:00]} 35. Kc3 {[%clk 0:01:26]}  Rc7+ {[%clk 0:01:59]} 36. Kd3 {[%clk 0:01:26]}  Rb7 {[%clk 0:01:52]} 37. b4 {[%clk 0:01:26]}  d4 {[%clk 0:01:52]} 38. b5 {[%clk 0:01:23]}  Kd5 {[%clk 0:01:51]} 39. b6 {[%clk 0:01:23]}  Kc5 {[%clk 0:01:50]} 40. g4 {[%clk 0:01:17]}  f5 {[%clk 0:01:49]} 41. gxf5 {[%clk 0:01:08]}  gxf5 {[%clk 0:01:50]} 42. f4 {[%clk 0:01:08]}  Kd5 {[%clk 0:01:37]} 43. Rb5+ {[%clk 0:00:55]}  Kc6 {[%clk 0:01:36]} 44. Rxf5 {[%clk 0:00:51]}  Kxb6 {[%clk 0:01:28]} 45. Kxd4 {[%clk 0:00:51]}  Rg7 {[%clk 0:01:25]} 46. Rg5 {[%clk 0:00:51]}  Rf7 {[%clk 0:01:23]} 47. Ke5 {[%clk 0:00:49]}  Kc6 {[%clk 0:01:22]} 48. f5 {[%clk 0:00:48]}  Kd7 {[%clk 0:01:23]} 49. f6 {[%clk 0:00:48]}  h6 {[%clk 0:01:19]} 50. Rg7 {[%clk 0:00:48]}  Ke8 {[%clk 0:01:18]} 51. Rxf7 {[%clk 0:00:44]}  Kxf7 {[%clk 0:01:18]} 52. Kf5 {[%clk 0:00:45]}  h5 {[%clk 0:01:17]} 53. h4 {[%clk 0:00:44]}  Kf8 {[%clk 0:01:15]} 54. Kg6 {[%clk 0:00:45]}  Kg8 {[%clk 0:01:12]} 55. Kxh5 {[%clk 0:00:45]}  Kf7 {[%clk 0:01:10]} 56. Kg5 {[%clk 0:00:46]}  Kf8 {[%clk 0:01:10]} 57. Kg6 {[%clk 0:00:47]}  Kg8 {[%clk 0:01:10]} 58. h5 {[%clk 0:00:47]}  Kh8 {[%clk 0:01:09]} 59. Kf7 {[%clk 0:00:47]}  Kh7 {[%clk 0:01:06]} 60. Ke7 {[%clk 0:00:48]} 1-0


[Site "https://www.chess.com"]

[Event "Titled Tuesday Blitz May 30 Early 2023"]
[White "Sprenar, Petr"]
[Black "Csonka, Balazs"]
[WhiteFideId "397164"]
[BlackFideId "742910"]
[WhiteElo "2182"]
[BlackElo "2404"]
[Result "1-0"]
[Round "01"]
[TimeControl "180+2"]
[Date "2023.05.30"]
[WhiteClock "0:01:44"]
[BlackClock "0:00:01"]

1. d4 {[%clk 0:03:00]}  d5 {[%clk 0:02:58]} 2. c4 {[%clk 0:03:00]}  dxc4 {[%clk 0:02:59]} 3. Nf3 {[%clk 0:03:00]}  Nf6 {[%clk 0:02:56]} 4. e3 {[%clk 0:03:00]}  e6 {[%clk 0:02:56]} 5. Bxc4 {[%clk 0:03:01]}  c5 {[%clk 0:02:56]} 6. O-O {[%clk 0:03:01]}  a6 {[%clk 0:02:56]} 7. b3 {[%clk 0:02:57]}  Nbd7 {[%clk 0:02:54]} 8. Bb2 {[%clk 0:02:58]}  b5 {[%clk 0:02:54]} 9. Be2 {[%clk 0:02:57]}  Bb7 {[%clk 0:02:53]} 10. a4 {[%clk 0:02:58]}  b4 {[%clk 0:02:49]} 11. Nbd2 {[%clk 0:02:55]}  Be7 {[%clk 0:02:49]} 12. Nc4 {[%clk 0:02:49]}  O-O {[%clk 0:02:49]} 13. Rc1 {[%clk 0:02:48]}  Nd5 {[%clk 0:02:32]} 14. Nfe5 {[%clk 0:02:45]}  Nxe5 {[%clk 0:02:24]} 15. dxe5 {[%clk 0:02:45]}  a5 {[%clk 0:01:50]} 16. Qc2 {[%clk 0:02:41]}  Qc7 {[%clk 0:01:41]} 17. Bf3 {[%clk 0:02:36]}  Ba6 {[%clk 0:01:26]} 18. Rfd1 {[%clk 0:02:34]}  Rad8 {[%clk 0:01:26]} 19. Nd6 {[%clk 0:02:20]}  Bxd6 {[%clk 0:00:25]} 20. exd6 {[%clk 0:02:20]}  Rxd6 {[%clk 0:00:22]} 21. Be5 {[%clk 0:02:12]}  Rfd8 {[%clk 0:00:17]} 22. Bxd6 {[%clk 0:02:10]}  Rxd6 {[%clk 0:00:18]} 23. Qxc5 {[%clk 0:02:09]}  Qxc5 {[%clk 0:00:15]} 24. Rxc5 {[%clk 0:02:10]}  f5 {[%clk 0:00:15]} 25. Bxd5 {[%clk 0:02:09]}  exd5 {[%clk 0:00:15]} 26. Rdxd5 {[%clk 0:02:09]}  Re6 {[%clk 0:00:13]} 27. Rxa5 {[%clk 0:02:01]}  Be2 {[%clk 0:00:13]} 28. Rac5 {[%clk 0:01:50]}  h6 {[%clk 0:00:07]} 29. Rd4 {[%clk 0:01:48]}  Rb6 {[%clk 0:00:04]} 30. a5 {[%clk 0:01:48]}  Rb7 {[%clk 0:00:04]} 31. f3 {[%clk 0:01:45]}  Bb5 {[%clk 0:00:01]} 32. Rxb4 {[%clk 0:01:44]} 1-0


[Site "https://www.chess.com"]

[Event "Titled Tuesday Blitz May 30 Early 2023"]
[White "Gatterer, Florian"]
[Black "Sieciechowicz, Marcin"]
[WhiteFideId "811688"]
[BlackFideId "1130170"]
[WhiteElo "2221"]
[BlackElo "2302"]
[Result "0-1"]
[Round "01"]
[TimeControl "180+2"]
[Date "2023.05.30"]
[WhiteClock "0:00:00"]
[BlackClock "0:00:14"]

1. c4 {[%clk 0:03:00]}  c6 {[%clk 0:02:59]} 2. Nf3 {[%clk 0:02:55]}  d5 {[%clk 0:03:00]} 3. g3 {[%clk 0:02:56]}  Nf6 {[%clk 0:02:59]} 4. Bg2 {[%clk 0:02:56]}  g6 {[%clk 0:03:00]} 5. b3 {[%clk 0:02:56]}  Bg7 {[%clk 0:03:00]} 6. Bb2 {[%clk 0:02:56]}  O-O {[%clk 0:03:01]} 7. O-O {[%clk 0:02:56]}  Bg4 {[%clk 0:03:01]} 8. d4 {[%clk 0:02:54]}  Ne4 {[%clk 0:03:00]} 9. Nbd2 {[%clk 0:02:52]}  Nd7 {[%clk 0:02:59]} 10. h3 {[%clk 0:02:49]}  Nxd2 {[%clk 0:02:58]} 11. Qxd2 {[%clk 0:02:41]}  Bxf3 {[%clk 0:02:57]} 12. Bxf3 {[%clk 0:02:40]}  e6 {[%clk 0:02:58]} 13. h4 {[%clk 0:02:37]}  h5 {[%clk 0:02:56]} 14. e4 {[%clk 0:02:31]}  dxe4 {[%clk 0:02:15]} 15. Bxe4 {[%clk 0:02:30]}  Ne5 {[%clk 0:02:09]} 16. Rad1 {[%clk 0:02:10]}  Ng4 {[%clk 0:02:09]} 17. Bf3 {[%clk 0:02:07]}  Nf6 {[%clk 0:02:08]} 18. d5 {[%clk 0:02:01]}  exd5 {[%clk 0:02:08]} 19. cxd5 {[%clk 0:02:01]}  Nxd5 {[%clk 0:02:08]} 20. Bxg7 {[%clk 0:01:59]}  Kxg7 {[%clk 0:02:09]} 21. Bxd5 {[%clk 0:01:59]}  cxd5 {[%clk 0:02:08]} 22. Qxd5 {[%clk 0:01:54]}  Qb6 {[%clk 0:01:47]} 23. Qd4+ {[%clk 0:01:50]}  Qxd4 {[%clk 0:01:44]} 24. Rxd4 {[%clk 0:01:49]}  Rfd8 {[%clk 0:01:44]} 25. Rfd1 {[%clk 0:01:48]}  Rxd4 {[%clk 0:01:43]} 26. Rxd4 {[%clk 0:01:49]}  Kf6 {[%clk 0:01:35]} 27. Rd7 {[%clk 0:01:47]}  Rb8 {[%clk 0:01:35]} 28. Kg2 {[%clk 0:01:43]}  a5 {[%clk 0:01:35]} 29. a4 {[%clk 0:01:39]}  Ke6 {[%clk 0:01:34]} 30. Rc7 {[%clk 0:01:38]}  b6 {[%clk 0:01:34]} 31. Kf3 {[%clk 0:01:31]}  Rd8 {[%clk 0:01:34]} 32. Ke4 {[%clk 0:01:24]}  Rd6 {[%clk 0:01:29]} 33. f3 {[%clk 0:01:18]}  f5+ {[%clk 0:01:22]} 34. Kf4 {[%clk 0:01:13]}  Kf6 {[%clk 0:01:14]} 35. Ke3 {[%clk 0:01:08]}  Ke5 {[%clk 0:01:13]} 36. f4+ {[%clk 0:01:04]}  Kd5 {[%clk 0:01:08]} 37. Kd3 {[%clk 0:00:58]}  Re6 {[%clk 0:01:08]} 38. Rc4 {[%clk 0:00:35]}  Re1 {[%clk 0:01:01]} 39. Rd4+ {[%clk 0:00:35]}  Kc6 {[%clk 0:00:57]} 40. Rc4+ {[%clk 0:00:34]}  Kb7 {[%clk 0:00:54]} 41. Rc3 {[%clk 0:00:33]}  Re4 {[%clk 0:00:48]} 42. Rc4 {[%clk 0:00:30]}  Re1 {[%clk 0:00:44]} 43. Rc3 {[%clk 0:00:30]}  Rd1+ {[%clk 0:00:23]} 44. Ke3 {[%clk 0:00:26]}  Rd6 {[%clk 0:00:22]} 45. Rd3 {[%clk 0:00:25]}  Re6+ {[%clk 0:00:22]} 46. Kd4 {[%clk 0:00:24]}  Kc6 {[%clk 0:00:22]} 47. Kc3 {[%clk 0:00:24]}  Re2 {[%clk 0:00:20]} 48. Rd4 {[%clk 0:00:23]}  Re3+ {[%clk 0:00:19]} 49. Rd3 {[%clk 0:00:23]}  Rxd3+ {[%clk 0:00:20]} 50. Kxd3 {[%clk 0:00:24]}  Kd5 {[%clk 0:00:20]} 51. Kc3 {[%clk 0:00:22]}  Ke4 {[%clk 0:00:15]} 52. Kc4 {[%clk 0:00:22]}  Kf3 {[%clk 0:00:16]} 53. Kb5 {[%clk 0:00:23]}  Kxg3 {[%clk 0:00:17]} 54. Kxb6 {[%clk 0:00:23]}  Kxh4 {[%clk 0:00:14]} 55. Kxa5 {[%clk 0:00:24]}  Kg4 {[%clk 0:00:14]} 56. b4 {[%clk 0:00:24]}  h4 {[%clk 0:00:15]} 57. b5 {[%clk 0:00:25]}  h3 {[%clk 0:00:15]} 58. b6 {[%clk 0:00:25]}  h2 {[%clk 0:00:16]} 59. b7 {[%clk 0:00:26]}  h1=Q {[%clk 0:00:17]} 60. b8=Q {[%clk 0:00:26]}  Qe1+ {[%clk 0:00:17]} 61. Ka6 {[%clk 0:00:25]}  Qe6+ {[%clk 0:00:17]} 62. Qb6 {[%clk 0:00:23]}  Qc4+ {[%clk 0:00:17]} 63. Qb5 {[%clk 0:00:23]}  Qc8+ {[%clk 0:00:17]} 64. Qb7 {[%clk 0:00:22]}  Qc4+ {[%clk 0:00:17]} 65. Qb5 {[%clk 0:00:22]}  Qxf4 {[%clk 0:00:18]} 66. a5 {[%clk 0:00:22]}  g5 {[%clk 0:00:17]} 67. Kb7 {[%clk 0:00:22]}  Qf3+ {[%clk 0:00:17]} 68. Qc6 {[%clk 0:00:22]}  Qxc6+ {[%clk 0:00:16]} 69. Kxc6 {[%clk 0:00:21]}  f4 {[%clk 0:00:17]} 70. a6 {[%clk 0:00:22]}  f3 {[%clk 0:00:17]} 71. a7 {[%clk 0:00:22]}  f2 {[%clk 0:00:18]} 72. a8=Q {[%clk 0:00:22]}  f1=Q {[%clk 0:00:19]} 73. Qc8+ {[%clk 0:00:21]}  Qf5 {[%clk 0:00:18]} 74. Qh8 {[%clk 0:00:21]}  Qe4+ {[%clk 0:00:18]} 75. Kc5 {[%clk 0:00:21]}  Kg3 {[%clk 0:00:18]} 76. Qb2 {[%clk 0:00:18]}  g4 {[%clk 0:00:17]} 77. Qc1 {[%clk 0:00:17]}  Kf2 {[%clk 0:00:11]} 78. Qd2+ {[%clk 0:00:15]}  Kf3 {[%clk 0:00:12]} 79. Qd1+ {[%clk 0:00:14]}  Qe2 {[%clk 0:00:12]} 80. Qd5+ {[%clk 0:00:14]}  Kf2 {[%clk 0:00:12]} 81. Qh5 {[%clk 0:00:09]}  Kg2 {[%clk 0:00:12]} 82. Kd4 {[%clk 0:00:08]}  Qf2+ {[%clk 0:00:10]} 83. Kd3 {[%clk 0:00:07]}  Qf3+ {[%clk 0:00:11]} 84. Kd2 {[%clk 0:00:07]}  g3 {[%clk 0:00:11]} 85. Qh4 {[%clk 0:00:04]}  Kg1 {[%clk 0:00:11]} 86. Ke1 {[%clk 0:00:03]}  Qf2+ {[%clk 0:00:11]} 87. Kd1 {[%clk 0:00:03]}  g2 {[%clk 0:00:12]} 88. Qh3 {[%clk 0:00:02]}  Qf1+ {[%clk 0:00:12]} 89. Kd2 {[%clk 0:00:02]}  Qf2+ {[%clk 0:00:12]} 90. Kd1 {[%clk 0:00:03]}  Qd4+ {[%clk 0:00:13]} 91. Ke2 {[%clk 0:00:03]}  Qe4+ {[%clk 0:00:13]} 92. Kd2 {[%clk 0:00:00]}  Kf1 {[%clk 0:00:14]} 0-1


[Site "https://www.chess.com"]

[Event "Titled Tuesday Blitz May 30 Early 2023"]
[White "Herrera Reyes, Jose Antonio"]
[Black "Vivas Zamora, Fabian Ernesto"]
[WhiteFideId "2274914"]
[BlackFideId "3902480"]
[WhiteElo "2272"]
[BlackElo "2244"]
[Result "1-0"]
[Round "01"]
[TimeControl "180+2"]
[Date "2023.05.30"]
[WhiteClock "0:01:41"]
[BlackClock "0:00:00"]

1. Nf3 {[%clk 0:03:00]}  Nf6 {[%clk 0:02:56]} 2. g3 {[%clk 0:03:00]}  g6 {[%clk 0:02:56]} 3. Bg2 {[%clk 0:03:01]}  Bg7 {[%clk 0:02:57]} 4. d3 {[%clk 0:03:02]}  O-O {[%clk 0:02:57]} 5. Nc3 {[%clk 0:03:03]}  d5 {[%clk 0:02:58]} 6. h4 {[%clk 0:03:04]}  c5 {[%clk 0:02:40]} 7. h5 {[%clk 0:03:04]}  Nxh5 {[%clk 0:02:37]} 8. Bg5 {[%clk 0:03:04]}  Nc6 {[%clk 0:02:33]} 9. Qd2 {[%clk 0:03:05]}  Re8 {[%clk 0:02:28]} 10. Bh6 {[%clk 0:03:04]}  Bh8 {[%clk 0:02:25]} 11. Rxh5 {[%clk 0:03:04]}  e5 {[%clk 0:01:57]} 12. Rh4 {[%clk 0:03:02]}  Be6 {[%clk 0:01:51]} 13. Ng5 {[%clk 0:03:01]}  Bf6 {[%clk 0:01:48]} 14. O-O-O {[%clk 0:02:49]}  Qa5 {[%clk 0:01:32]} 15. a3 {[%clk 0:02:42]}  b5 {[%clk 0:01:28]} 16. Nxd5 {[%clk 0:02:37]}  Qxd2+ {[%clk 0:01:15]} 17. Rxd2 {[%clk 0:02:38]}  Bxd5 {[%clk 0:01:03]} 18. Bxd5 {[%clk 0:02:39]}  Bxg5 {[%clk 0:01:03]} 19. Bxg5 {[%clk 0:02:38]}  Rac8 {[%clk 0:01:02]} 20. c3 {[%clk 0:02:29]}  h5 {[%clk 0:00:55]} 21. g4 {[%clk 0:02:29]}  hxg4 {[%clk 0:00:53]} 22. Rxg4 {[%clk 0:02:29]}  Kg7 {[%clk 0:00:52]} 23. e4 {[%clk 0:02:28]}  Rh8 {[%clk 0:00:47]} 24. f4 {[%clk 0:02:28]}  f6 {[%clk 0:00:45]} 25. Bh4 {[%clk 0:02:26]}  exf4 {[%clk 0:00:43]} 26. Rxf4 {[%clk 0:02:20]}  g5 {[%clk 0:00:40]} 27. Rg2 {[%clk 0:02:20]}  Ne5 {[%clk 0:00:35]} 28. Kc2 {[%clk 0:02:16]}  Ng6 {[%clk 0:00:35]} 29. Bxg5 {[%clk 0:02:14]}  fxg5 {[%clk 0:00:28]} 30. Rxg5 {[%clk 0:02:13]}  Rh2+ {[%clk 0:00:24]} 31. Kb3 {[%clk 0:02:13]}  c4+ {[%clk 0:00:21]} 32. dxc4 {[%clk 0:02:11]}  bxc4+ {[%clk 0:00:22]} 33. Bxc4 {[%clk 0:02:10]}  Rb8+ {[%clk 0:00:22]} 34. Ka4 {[%clk 0:02:10]}  Rhxb2 {[%clk 0:00:21]} 35. Rfg4 {[%clk 0:02:08]}  R8b6 {[%clk 0:00:18]} 36. e5 {[%clk 0:02:04]}  Kh6 {[%clk 0:00:11]} 37. e6 {[%clk 0:02:03]}  Ne7 {[%clk 0:00:10]} 38. Rg7 {[%clk 0:01:53]}  Nf5 {[%clk 0:00:10]} 39. R7g6+ {[%clk 0:01:49]}  Kh7 {[%clk 0:00:07]} 40. R6g5 {[%clk 0:01:49]}  Nh6 {[%clk 0:00:04]} 41. Rh5 {[%clk 0:01:41]}  Rf2 {[%clk 0:00:00]} 42. Bd3+ {[%clk 0:01:41]} 1-0


[Site "https://www.chess.com"]

[Event "Titled Tuesday Blitz May 30 Early 2023"]
[White "Sargissyan, Sargis"]
[Black "Halkias, Stelios"]
[WhiteFideId "13303210"]
[BlackFideId "4201809"]
[WhiteElo "2109"]
[BlackElo "2451"]
[Result "0-1"]
[Round "01"]
[TimeControl "180+2"]
[Date "2023.05.30"]
[WhiteClock "0:00:02"]
[BlackClock "0:00:33"]

1. e4 {[%clk 0:02:59]}  c6 {[%clk 0:02:59]} 2. Nc3 {[%clk 0:02:57]}  d5 {[%clk 0:02:58]} 3. Nf3 {[%clk 0:02:58]}  dxe4 {[%clk 0:02:57]} 4. Nxe4 {[%clk 0:02:57]}  Nf6 {[%clk 0:02:58]} 5. Qe2 {[%clk 0:02:57]}  Nxe4 {[%clk 0:02:57]} 6. Qxe4 {[%clk 0:02:57]}  Nd7 {[%clk 0:02:57]} 7. g3 {[%clk 0:02:49]}  Nf6 {[%clk 0:02:56]} 8. Qe2 {[%clk 0:02:50]}  Bf5 {[%clk 0:02:54]} 9. d3 {[%clk 0:02:48]}  h6 {[%clk 0:02:53]} 10. Bg2 {[%clk 0:02:49]}  e6 {[%clk 0:02:53]} 11. O-O {[%clk 0:02:48]}  Bd6 {[%clk 0:02:48]} 12. b3 {[%clk 0:02:48]}  O-O {[%clk 0:02:48]} 13. Bb2 {[%clk 0:02:47]}  a5 {[%clk 0:02:48]} 14. a4 {[%clk 0:02:47]}  Nd5 {[%clk 0:02:43]} 15. Ne5 {[%clk 0:02:37]}  Bh7 {[%clk 0:02:40]} 16. Qg4 {[%clk 0:02:07]}  Bf5 {[%clk 0:02:31]} 17. Qe2 {[%clk 0:02:07]}  Qc7 {[%clk 0:02:29]} 18. h4 {[%clk 0:01:58]}  Rae8 {[%clk 0:02:26]} 19. Nc4 {[%clk 0:01:52]}  Bb4 {[%clk 0:02:14]} 20. Be5 {[%clk 0:01:48]}  Qd8 {[%clk 0:02:14]} 21. g4 {[%clk 0:01:42]}  Bh7 {[%clk 0:01:55]} 22. h5 {[%clk 0:01:23]}  f6 {[%clk 0:01:50]} 23. Bb2 {[%clk 0:01:18]}  e5 {[%clk 0:01:43]} 24. Be4 {[%clk 0:01:14]}  Nf4 {[%clk 0:01:40]} 25. Qf3 {[%clk 0:01:14]}  f5 {[%clk 0:01:33]} 26. gxf5 {[%clk 0:01:02]}  Qg5+ {[%clk 0:01:28]} 27. Kh1 {[%clk 0:01:01]}  Bxf5 {[%clk 0:01:23]} 28. Ne3 {[%clk 0:00:48]}  Qh4+ {[%clk 0:01:04]} 29. Kg1 {[%clk 0:00:47]}  Bxe4 {[%clk 0:00:53]} 30. Qxe4 {[%clk 0:00:39]}  Qxh5 {[%clk 0:00:53]} 31. Qh1 {[%clk 0:00:07]}  Qg6+ {[%clk 0:00:46]} 32. Kh2 {[%clk 0:00:06]}  Rf6 {[%clk 0:00:42]} 33. Qf3 {[%clk 0:00:01]}  Nxd3 {[%clk 0:00:33]} 34. Qg3 {[%clk 0:00:02]} 0-1


[Site "https://www.chess.com"]

[Event "Titled Tuesday Blitz May 30 Early 2023"]
[White "Quintiliano Pinto, Renato R."]
[Black "Toktomushev, Teimur"]
[WhiteFideId "2117568"]
[BlackFideId "14176726"]
[WhiteElo "2459"]
[BlackElo "2116"]
[Result "1-0"]
[Round "01"]
[TimeControl "180+2"]
[Date "2023.05.30"]
[WhiteClock "0:01:00"]
[BlackClock "0:00:02"]

1. d4 {[%clk 0:02:45]}  d5 {[%clk 0:02:00]} 2. c4 {[%clk 0:02:43]}  e6 {[%clk 0:01:47]} 3. Nc3 {[%clk 0:02:43]}  Nf6 {[%clk 0:01:38]} 4. cxd5 {[%clk 0:02:42]}  exd5 {[%clk 0:01:39]} 5. Bg5 {[%clk 0:02:41]}  Be7 {[%clk 0:01:37]} 6. e3 {[%clk 0:02:41]}  c6 {[%clk 0:01:37]} 7. Bd3 {[%clk 0:02:41]}  Nbd7 {[%clk 0:01:37]} 8. Qc2 {[%clk 0:02:40]}  Nh5 {[%clk 0:01:38]} 9. Bxe7 {[%clk 0:02:38]}  Qxe7 {[%clk 0:01:38]} 10. Nge2 {[%clk 0:02:38]}  g6 {[%clk 0:01:37]} 11. O-O {[%clk 0:02:38]}  O-O {[%clk 0:01:37]} 12. Rab1 {[%clk 0:02:37]}  a5 {[%clk 0:01:37]} 13. Rbe1 {[%clk 0:02:36]}  Ndf6 {[%clk 0:01:36]} 14. Nc1 {[%clk 0:02:27]}  Ng7 {[%clk 0:01:20]} 15. f3 {[%clk 0:02:26]}  c5 {[%clk 0:01:10]} 16. dxc5 {[%clk 0:02:21]}  Qxc5 {[%clk 0:01:11]} 17. Nb3 {[%clk 0:02:20]}  Qb6 {[%clk 0:00:31]} 18. Nd4 {[%clk 0:02:20]}  Bd7 {[%clk 0:00:29]} 19. a4 {[%clk 0:02:15]}  Rac8 {[%clk 0:00:27]} 20. Qf2 {[%clk 0:02:14]}  Rfe8 {[%clk 0:00:26]} 21. Ncb5 {[%clk 0:02:09]}  Ne6 {[%clk 0:00:26]} 22. Qh4 {[%clk 0:02:06]}  Nxd4 {[%clk 0:00:17]} 23. Nxd4 {[%clk 0:02:06]}  Kg7 {[%clk 0:00:18]} 24. Bb5 {[%clk 0:02:02]}  Bxb5 {[%clk 0:00:16]} 25. axb5 {[%clk 0:02:03]}  Qc5 {[%clk 0:00:09]} 26. Qg5 {[%clk 0:02:01]}  Nd7 {[%clk 0:00:03]} 27. h4 {[%clk 0:01:58]}  Kh8 {[%clk 0:00:02]} 28. h5 {[%clk 0:01:57]}  Qe7 {[%clk 0:00:02]} 29. Qxe7 {[%clk 0:01:56]}  Rxe7 {[%clk 0:00:03]} 30. Kf2 {[%clk 0:01:52]}  Nf6 {[%clk 0:00:03]} 31. hxg6 {[%clk 0:01:19]}  hxg6 {[%clk 0:00:04]} 32. Rc1 {[%clk 0:01:18]}  Rec7 {[%clk 0:00:03]} 33. Rxc7 {[%clk 0:01:18]}  Rxc7 {[%clk 0:00:04]} 34. Ke2 {[%clk 0:01:18]}  Kg7 {[%clk 0:00:04]} 35. Kd2 {[%clk 0:01:17]}  Nd7 {[%clk 0:00:02]} 36. Ra1 {[%clk 0:01:16]}  b6 {[%clk 0:00:02]} 37. Nc6 {[%clk 0:01:15]}  Nc5 {[%clk 0:00:02]} 38. Ra3 {[%clk 0:01:14]}  Rd7 {[%clk 0:00:02]} 39. Nd4 {[%clk 0:01:12]}  Kf6 {[%clk 0:00:02]} 40. Kc3 {[%clk 0:01:07]}  Ke5 {[%clk 0:00:02]} 41. b4 {[%clk 0:01:06]}  axb4+ {[%clk 0:00:02]} 42. Kxb4 {[%clk 0:01:07]}  Kd6 {[%clk 0:00:02]} 43. Ra8 {[%clk 0:01:06]}  Re7 {[%clk 0:00:02]} 44. Ra3 {[%clk 0:01:05]}  Kd7 {[%clk 0:00:01]} 45. Nc6 {[%clk 0:01:05]}  Kd6 {[%clk 0:00:02]} 46. Nxe7 {[%clk 0:01:05]}  Kxe7 {[%clk 0:00:03]} 47. Ra7+ {[%clk 0:01:05]}  Ke6 {[%clk 0:00:02]} 48. Rc7 {[%clk 0:01:05]}  Nd7 {[%clk 0:00:02]} 49. Rc6+ {[%clk 0:01:05]}  Ke5 {[%clk 0:00:02]} 50. Kc3 {[%clk 0:01:05]}  f6 {[%clk 0:00:01]} 51. g4 {[%clk 0:01:03]}  g5 {[%clk 0:00:01]} 52. Kd2 {[%clk 0:01:03]}  d4 {[%clk 0:00:01]} 53. exd4+ {[%clk 0:01:02]}  Kd5 {[%clk 0:00:02]} 54. Kd3 {[%clk 0:01:02]}  f5 {[%clk 0:00:01]} 55. gxf5 {[%clk 0:01:01]}  Nf6 {[%clk 0:00:01]} 56. Rxf6 {[%clk 0:01:00]}  g4 {[%clk 0:00:02]} 57. Rd6+ {[%clk 0:00:59]}  Kxd6 {[%clk 0:00:02]} 58. fxg4 {[%clk 0:01:00]}  Ke7 {[%clk 0:00:02]} 59. Ke4 {[%clk 0:01:00]}  Kf6 {[%clk 0:00:02]} 60. Kf4 {[%clk 0:01:00]} 1-0


[Site "https://www.chess.com"]